bitfinex/quotes_SOLUSD_20240821
["timestamp","ask_amount","ask_price","bid_price","bid_amount"]
[1724264927629,16.5722,143.05,143.01,24.473]
[1724264927830,23.5629,143.05,143.01,17.4808]
[1724264928448,16.5722,143.05,143.01,17.4808]
[1724264928656,16.5722,143.05,143.02,6.9918]
[1724264928842,16.5722,143.05,143.01,24.4731]
[1724264929952,23.5629,143.05,143.01,17.4808]
[1724264930159,16.5722,143.05,143.01,17.4808]
[1724264930930,16.5722,143.05,143.02,6.9916]
[1724264931838,16.5722,143.05,143.01,17.4808]
[1724264932057,16.5722,143.05,143.03,6.9911]
[1724264934956,47.9788,143.08,142.99,34.9652]
[1724264935161,47.9788,143.08,143.06,6.9899]
[1724264935162,15.0488,143.08,143.06,6.9899]
[1724264935739,15.0488,143.08,143.05,24.4662]
[1724264936251,15.0488,143.08,142.99,41.1236]
[1724264936252,15.0488,143.08,143.04,6.9909]
[1724264936637,15.0488,143.08,143.03,34.9573]
[1724264936854,15.0488,143.08,143.06,24.4643]
[1724264938342,15.0488,143.08,143.07,6.9895]
[1724264938548,15.0488,143.08,143.06,17.4744]
[1724264938549,15.5606,143.12,143.08,6.9887]
[1724264940041,16.91201415,143.12,143.09,6.9885]
[1724264940846,32.93,143.11,143.08,17.4719]
[1724264942750,32.93,143.11,143.08,24.4609]
[1724264943247,32.93,143.11,143.08,17.4719]
[1724264944347,15.5606,143.12,143.08,17.4719]
[1724264945769,15.5606,143.12,143.1,17.4699]
[1724264945946,15.5606,143.12,143.11,6.9876]
[1724264946453,15.5606,143.12,143.1,24.4578]
[1724264946649,15.4057,143.16,143.11,6.9872]
[1724264946851,48.3357,143.16,143.11,6.9872]
[1724264947050,48.3357,143.16,143.12,6.9868]
[1724264947880,48.3357,143.16,143.1,17.4699]
[1724264947881,55.3209,143.16,143.11,6.9874]
[1724264948873,6.9857,143.15,143.1,24.4578]
[1724264949256,39.9162,143.14,143.1,24.4578]
[1724264949568,32.93,143.14,143.1,24.4578]
[1724264950549,39.9162,143.14,143.1,17.4699]
[1724264950750,32.93,143.12,143.08,6.9889]
[1724264950947,1.35141415,143.11,143.08,6.9889]
[1724264952284,41.26961415,143.1,143.05,6.9901]
[1724264952443,15.4353,143.09,143.06,6.99]
[1724264953474,32.93,143.1,143.07,6.9891]
[1724264954869,32.93,143.1,143.06,17.4745]
[1724264955176,34.28141415,143.1,143.06,24.4642]
[1724264955367,32.93,143.1,143.06,24.4642]
[1724264955675,16.4841,143.12,143.06,24.4642]
[1724264955676,56.4013,143.12,143.07,6.9894]
[1724264958688,15.3383,143.16,143.12,6.9869]
[1724264958902,15.3383,143.16,143.07,34.9478]
[1724264958903,15.3383,143.16,143.1,24.4572]
[1724264959188,22.3235,143.16,143.07,34.9478]
[1724264959765,22.3235,143.16,143.1,6.988]
[1724264960591,32.93,143.15,143.1,6.988]
[1724264961273,32.93,143.11,143.06,24.465]
[1724264963594,39.9177,143.11,143.06,24.465]
[1724264963761,32.93,143.11,143.06,24.465]
[1724264964976,6.9872,143.12,143.07,6.9894]
[1724264966093,39.9166,143.13,143.07,6.9894]
[1724264966966,6.9871,143.12,143.07,6.9894]
[1724264967195,39.9176,143.11,143.06,17.4751]
[1724264967686,6.9872,143.12,143.06,17.4751]
[1724264968571,34.28141415,143.13,143.08,6.989]
[1724264968572,39.9166,143.13,143.08,6.989]
[1724264968774,32.93,143.13,143.08,17.4722]
[1724264968978,34.28141415,143.15,143.09,6.9885]
[1724264969167,1.35141415,143.14,143.09,6.9885]
[1724264969367,8.33791415,143.14,143.09,6.9885]
[1724264969573,1.35141415,143.14,143.08,24.4612]
[1724264969762,1.35141415,143.13,143.08,24.4612]
[1724264970792,6.9871,143.13,143.08,17.4722]
[1724264971480,6.9871,143.13,143.08,24.4611]
[1724264971980,6.9871,143.13,143.08,17.4722]
[1724264972170,6.9873,143.12,143.08,17.4722]
[1724264972961,1.35141415,143.11,143.08,17.4722]
[1724264973166,6.9874,143.12,143.08,17.4722]
[1724264973384,6.9874,143.12,143.03,34.9572]
[1724264973385,6.9874,143.12,143.06,6.9899]
[1724264973585,1.35141415,143.11,143.06,6.9899]
[1724264973998,1.35141415,143.11,143.05,17.4757]
[1724264973999,15.1209,143.1,143.05,17.4757]
[1724264974186,32.93,143.09,143.05,17.4757]
[1724264974387,32.93,143.09,143.05,24.466]
[1724264974598,15.1209,143.1,143.06,6.9899]
[1724264975375,48.3407,143.13,143.05,17.4757]
[1724264975569,55.3275,143.13,143.08,6.989]
[1724264975789,6.9872,143.12,143.05,17.4757]
[1724264975966,6.9872,143.12,143.07,6.9891]
[1724264976486,55.3273,143.13,143.08,6.989]
[1724264977700,6.9871,143.12,143.07,6.9895]
[1724264977897,15.4107,143.13,143.05,34.9524]
[1724264978272,0.8339037,143.17,143.08,32.93]
[1724264978498,0.8339037,143.17,143.15,6.9852]
[1724264979586,0.8339037,143.17,143.14,6.9861]
[1724264980202,0.8339037,143.17,143.13,24.4524]
[1724264980494,0.8339037,143.17,143.14,6.9858]
[1724264980670,0.8339037,143.17,143.15,6.9856]
[1724264982408,0.8339037,143.17,143.14,6.986]
[1724264982701,0.8339037,143.17,143.15,6.9856]
[1724264983270,0.8339037,143.17,143.16,6.9851]
[1724264985079,0.8339037,143.17,143.15,24.4488]
[1724264985598,0.8339037,143.17,143.12,23.5865]
[1724264985909,0.8339037,143.17,143.15,6.9856]
[1724264986292,0.8339037,143.17,143.16,6.9851]
[1724264987274,0.8339037,143.17,143.15,24.4496]
[1724264987670,0.8339037,143.17,143.16,6.9851]
[1724264988103,0.8339037,143.17,143.15,17.4641]
[1724264988285,0.8339037,143.17,143.16,6.9851]
[1724264988491,0.8339037,143.17,143.16,8.38200009]
[1724264988691,0.8339037,143.17,143.16,38.02278104]
[1724264988872,0.8339037,143.17,143.16,28.38200009]
[1724264989188,0.8339037,143.17,143.16,6.9851]
[1724264996214,0.8339037,143.17,143.15,17.4641]
[1724264996418,0.8339037,143.17,143.16,6.9851]
[1724264997718,2.18531785,143.17,143.12,6.9867]
[1724264998016,32.93,143.16,143.11,24.4559]
[1724264998721,0.8339037,143.17,143.12,6.987]
[1724264999120,2.18531785,143.17,143.12,6.9871]
[1724264999306,6.9852,143.16,143.11,17.4683]
[1724264999507,1.35141415,143.15,143.11,24.4557]
[1724265000220,39.9152,143.16,143.11,24.4557]
[1724265000431,6.9867,143.13,143.08,17.4726]
[1724265000727,48.8126,143.14,143.09,6.9884]
[1724265001026,15.8826,143.14,143.09,6.9884]
[1724265001412,15.8826,143.14,143.11,17.469]
[1724265001613,15.8826,143.14,143.11,24.4561]
[1724265001819,15.8826,143.14,143.12,6.9871]
[1724265003206,7.8186037,143.17,143.13,17.4658]
[1724265003207,0.8339037,143.17,143.13,17.4658]
[1724265003620,0.8339037,143.17,143.13,24.4523]
[1724265004102,0.8339037,143.17,143.15,6.9855]
[1724265004694,0.8339037,143.17,143.16,6.9851]
[1724265006314,0.8339037,143.17,143.12,17.4677]
[1724265006603,0.8339037,143.17,143.15,6.9852]
[1724265006825,0.8339037,143.17,143.14,17.4647]
[1724265006826,0.8339037,143.17,143.16,6.9851]
[1724265008997,0.8339037,143.17,143.15,6.9855]
[1724265009300,0.8339037,143.17,143.16,6.9851]
[1724265011912,0.8339037,143.17,143.14,17.4647]
[1724265012132,0.8339037,143.17,143.14,24.4504]
[1724265012625,0.8339037,143.17,143.16,6.9851]
[1724265013034,0.8339037,143.17,143.15,6.9855]
[1724265013235,2.18531785,143.17,143.14,24.4507]
[1724265013609,2.18531785,143.17,143.12,6.987]
[1724265013803,15.0523,143.16,143.12,6.987]
[1724265014030,15.0523,143.16,143.14,6.9861]
[1724265014229,15.0523,143.16,143.15,6.9856]
[1724265014559,15.0523,143.16,143.13,24.4525]
[1724265014902,1.35141415,143.15,143.13,17.466]
[1724265015121,15.0523,143.16,143.13,17.466]
[1724265015709,1.35141415,143.15,143.13,24.4525]
[1724265015928,16.40371415,143.16,143.13,24.4525]
[1724265017153,16.40371415,143.16,143.13,17.466]
[1724265018253,16.40371415,143.16,143.12,6.987]
[1724265018434,16.40371415,143.16,143.1,17.4696]
[1724265018435,23.38901415,143.16,143.1,24.4572]
[1724265018638,23.38901415,143.16,143.1,17.4696]
[1724265018821,39.9157,143.15,143.1,17.4696]
[1724265019024,16.40371415,143.16,143.08,6.9889]
[1724265019025,39.9166,143.13,143.08,6.9889]
[1724265019253,16.4985,143.1,143.02,6.3723]
[1724265019430,1.35141415,143.09,143.02,6.3723]
[1724265019624,34.28141415,143.09,143.04,24.4678]
[1724265019958,47.48271415,143.09,143.04,17.4769]
[1724265020634,6.9892,143.08,143.02,6.9919]
[1724265020825,47.48241415,143.09,143.03,6.9914]
[1724265021023,47.48241415,143.09,143.04,6.9908]
[1724265021550,32.93,143.07,143.01,17.4809]
[1724265021857,7.56381415,143.09,143.0,100.0]
[1724265021858,39.9205,143.05,143.0,100.0]
[1724265022148,62.74381415,143.06,143.0,100.0]
[1724265022149,32.93,143.03,143.0,100.0]
[1724265022361,32.93,143.01,143.0,100.0]
[1724265022523,34.28141415,143.01,143.0,100.0]
[1724265022928,94.367,143.01,143.0,83.3334]
[1724265023321,94.367,143.01,143.0,66.6668]
[1724265023540,101.3595,143.01,143.0,66.6668]
[1724265023751,95.71841415,143.01,143.0,66.6668]
[1724265023942,94.367,143.01,143.0,66.6668]
[1724265024142,101.3595,143.01,143.0,66.6668]
[1724265024451,94.367,143.01,143.0,66.6668]
[1724265024661,95.71841415,143.01,143.0,66.6668]
[1724265025042,102.71091415,143.01,143.0,66.6668]
[1724265025356,102.71091415,143.01,143.0,33.3336]
[1724265025534,101.3595,143.01,143.0,33.3336]
[1724265025955,6.0183,143.02,143.0,33.3336]
[1724265027068,13.0103,143.02,143.0,33.3336]
[1724265027227,6.0183,143.02,143.0,33.3336]
[1724265027744,45.0,143.01,143.0,33.3336]
[1724265029051,32.93,143.04,143.01,6.9925]
[1724265029257,6.0073,143.06,143.01,17.481]
[1724265029571,22.7112,143.09,143.03,6.9915]
[1724265029860,22.7112,143.09,143.01,17.481]
[1724265029861,6.9893,143.08,143.02,6.992]
[1724265030029,48.6522,143.09,143.01,17.481]
[1724265030239,15.7222,143.09,143.04,6.991]
[1724265030444,48.6522,143.09,143.04,6.991]
[1724265030625,32.93,143.09,143.05,6.9904]
[1724265030839,6.0073,143.1,143.06,6.9896]
[1724265031344,7.35871415,143.1,143.05,24.4658]
[1724265031747,32.93,143.09,143.02,17.4798]
[1724265031972,32.93,143.09,143.04,6.9909]
[1724265032342,32.93,143.09,143.05,6.9905]
[1724265032548,32.93,143.09,143.04,17.4766]
[1724265032756,32.93,143.13,143.04,32.8365]
[1724265033070,32.93,143.11,143.04,17.4766]
[1724265033274,32.93,143.11,143.05,6.9904]
[1724265034170,45.0,143.1,143.05,6.9904]
[1724265034553,45.0,143.1,143.06,6.9899]
[1724265034762,32.93,143.11,143.06,6.9899]
[1724265034957,39.9176,143.11,143.06,6.9899]
[1724265035968,8.33951415,143.1,143.04,17.4766]
[1724265036284,8.33951415,143.1,143.04,24.4672]
[1724265036462,32.93,143.09,143.04,24.4672]
[1724265036672,1.35141415,143.08,143.04,24.4672]
[1724265036873,32.93,143.09,143.04,24.4672]
[1724265037081,32.93,143.09,143.04,17.4766]
[1724265037373,39.9177,143.11,143.04,17.4766]
[1724265037576,45.0,143.1,143.04,17.4766]
[1724265038557,32.93,143.11,143.06,17.4743]
[1724265038759,1.35141415,143.1,143.06,17.4743]
[1724265038996,1.35141415,143.12,143.09,6.9885]
[1724265039156,6.444,143.16,143.02,34.9595]
[1724265039157,32.93,143.15,143.11,6.9876]
[1724265039355,34.28141415,143.15,143.11,6.9876]
[1724265039566,34.28141415,143.15,143.08,17.4718]
[1724265039567,39.9159,143.15,143.1,6.988]
[1724265039776,6.9862,143.14,143.08,17.4718]
[1724265040550,6.9862,143.14,143.08,24.4608]
[1724265040754,6.9862,143.14,143.08,17.4718]
[1724265040755,32.93,143.13,143.08,17.4718]
[1724265040985,39.9169,143.13,143.08,24.4608]
[1724265041389,32.93,143.11,143.07,6.9895]
[1724265041578,1.35141415,143.1,143.06,6.9899]
[1724265042460,39.9177,143.11,143.06,6.9899]
[1724265042658,45.0,143.1,143.06,6.9899]
[1724265043776,32.93,143.11,143.08,6.989]
[1724265043977,32.93,143.11,143.07,6.9895]
[1724265044483,39.9176,143.11,143.06,6.99]
[1724265044782,6.9882,143.1,143.05,6.9901]
[1724265045083,32.93,143.11,143.07,6.9895]
[1724265045286,45.0,143.1,143.07,6.9895]
[1724265045670,45.0,143.1,143.06,6.9899]
[1724265045872,39.9176,143.11,143.06,6.9899]
[1724265046795,32.93,143.11,143.04,17.477]
[1724265047387,32.93,143.11,143.08,6.989]
[1724265047766,32.93,143.11,143.02,34.959]
[1724265048185,32.93,143.11,143.05,17.476]
[1724265048390,6.9882,143.1,143.05,24.4662]
[1724265049091,32.93,143.09,143.05,24.4662]
[1724265049775,39.9187,143.09,143.05,17.476]
[1724265050184,1.35141415,143.08,143.05,17.476]
[1724265050381,1.35141415,143.07,143.03,6.9911]
[1724265050671,34.28141415,143.07,143.03,6.9911]
[1724265050981,34.28141415,143.07,143.04,6.9909]
[1724265052070,34.28141415,143.07,143.02,24.4708]
[1724265052470,34.28141415,143.07,143.02,17.4792]
[1724265052789,32.93,143.05,143.01,6.9923]
[1724265052990,6.9905,143.06,143.0,33.3336]
[1724265052991,32.93,143.03,143.0,33.3336]
[1724265053978,39.9206,143.05,143.0,40.3264]
[1724265054216,39.9206,143.05,143.01,6.9924]
[1724265054382,41.27201415,143.05,143.01,6.9924]
[1724265054579,41.27201415,143.05,143.0,33.3336]
[1724265054580,41.27201415,143.05,143.0,40.3264]
[1724265054782,39.9206,143.05,143.0,40.3264]
[1724265054983,32.93,143.05,143.01,6.9923]
[1724265055403,24.0385,143.09,143.01,17.4807]
[1724265055404,32.93,143.07,143.01,17.4807]
[1724265055579,65.0,143.08,143.03,17.4784]
[1724265055782,1.35141415,143.07,143.0,50.8158]
[1724265056001,53.34111415,143.07,143.02,6.9919]
[1724265056898,6.9902,143.06,143.01,6.9924]
[1724265057682,45.0,143.05,143.01,6.9924]
[1724265057904,45.0,143.05,143.0,50.8158]
[1724265057905,6.9911,143.04,143.0,50.8158]
[1724265058102,32.93,143.03,143.0,50.8158]
[1724265058611,77.93,143.05,143.02,6.9917]
[1724265058813,34.28141415,143.07,143.02,6.9917]
[1724265059021,41.27101415,143.07,143.03,6.9915]
[1724265059188,41.27101415,143.07,143.0,50.8158]
[1724265059829,1.35141415,143.07,143.02,17.4793]
[1724265060115,6.5663,143.09,143.05,6.9905]
[1724265060521,39.4963,143.09,143.04,17.4769]
[1724265060701,1.35141415,143.08,143.04,17.4769]
[1724265060887,39.4963,143.09,143.04,24.4678]
[1724265061089,46.4849,143.09,143.04,24.4678]
[1724265061399,47.83631415,143.09,143.04,24.4678]
[1724265061587,51.9891,143.08,143.04,24.4678]
[1724265061787,1.35141415,143.07,143.04,24.4678]
[1724265062610,45.0,143.08,143.04,17.4769]
[1724265062819,16.4073,143.11,143.04,17.4769]
[1724265062820,6.9882,143.1,143.05,6.9904]
[1724265063324,49.3373,143.11,143.0,33.3336]
[1724265063325,46.4143,143.13,143.06,17.4744]
[1724265063524,46.4143,143.13,143.08,6.9887]
[1724265064316,48.5765,143.15,143.09,17.4712]
[1724265064723,6.9861,143.14,143.09,24.4596]
[1724265065596,39.9167,143.13,143.09,17.4712]
[1724265066313,39.9167,143.13,143.08,6.9889]
[1724265066518,32.93,143.13,143.08,17.4722]
[1724265067399,32.93,143.13,143.1,6.988]
[1724265067597,32.93,143.13,143.09,6.9885]
[1724265067987,6.66,143.16,143.08,17.4722]
[1724265068192,0.8339037,143.17,143.11,17.4684]
[1724265068403,0.8339037,143.17,143.1,15.0121]
[1724265068607,0.8339037,143.17,143.15,6.9856]
[1724265068830,0.8339037,143.17,143.14,6.986]
[1724265069200,0.8339037,143.17,143.13,24.452]
[1724265069630,6.9852,143.16,143.11,6.9872]
[1724265069841,32.93,143.15,143.12,6.987]
[1724265071498,33.7639037,143.17,143.12,17.4669]
[1724265071699,33.7639037,143.17,143.14,6.9861]
[1724265071917,33.7639037,143.17,143.13,6.9866]
[1724265072118,35.11531785,143.17,143.13,6.9866]
[1724265072427,0.8339037,143.17,143.12,17.4669]
[1724265072621,0.8339037,143.17,143.14,6.9861]
[1724265072822,2.18531785,143.17,143.13,6.9865]
[1724265073516,1.35141415,143.16,143.13,6.9865]
[1724265073715,1.35141415,143.16,143.1,6.988]
[1724265073716,34.28141415,143.16,143.1,6.988]
[1724265073919,32.93,143.14,143.1,6.988]
[1724265074224,32.93,143.14,143.09,17.471]
[1724265074225,39.9163,143.14,143.09,17.471]
[1724265074403,39.9163,143.14,143.09,24.4595]
[1724265075527,1.35141415,143.13,143.09,24.4595]
[1724265075719,32.93,143.14,143.1,6.988]
[1724265075907,32.93,143.14,143.11,6.9875]
[1724265076409,32.93,143.16,143.12,6.9871]
[1724265076808,1.35141415,143.15,143.12,6.9871]
[1724265077311,7.8189037,143.17,143.12,6.9871]
[1724265077521,9.17031785,143.17,143.12,6.9871]
[1724265078220,9.17031785,143.17,143.11,17.4682]
[1724265078426,0.8339037,143.17,143.13,6.9866]
[1724265079221,0.8339037,143.17,143.14,6.986]
[1724265079714,0.8339037,143.17,143.13,24.4525]
[1724265080121,7.8186037,143.17,143.12,6.987]
[1724265080334,32.93,143.16,143.12,6.987]
[1724265081232,7.8186037,143.17,143.12,17.4673]
[1724265081233,0.8339037,143.17,143.12,17.4673]
[1724265081610,0.8339037,143.17,143.07,82.8899]
[1724265081611,0.8339037,143.17,143.14,17.4647]
[1724265081805,0.8339037,143.17,143.15,6.9855]
[1724265082025,0.8339037,143.17,143.14,24.4508]
[1724265083414,0.8339037,143.17,143.14,17.4647]
[1724265084437,0.8339037,143.17,143.14,24.4508]
[1724265085136,0.8339037,143.17,143.14,17.4647]
[1724265085438,0.8339037,143.17,143.14,24.4505]
[1724265086641,0.8339037,143.17,143.14,17.4647]
[1724265086822,0.8339037,143.17,143.15,6.9854]
[1724265087019,0.8339037,143.17,143.16,6.9851]
[1724265100135,0.8339037,143.17,143.16,6.96466147]
[1724265107666,7.8189037,143.17,143.12,6.9867]
[1724265107832,13.14,143.15,143.13,6.9866]
[1724265109046,13.9739037,143.17,143.15,6.9855]
[1724265109539,0.8339037,143.17,143.15,6.9855]
[1724265109743,0.8339037,143.17,143.16,6.9851]
[1724265111956,0.8339037,143.17,143.15,17.4638]
[1724265112338,0.8339037,143.17,143.16,6.9851]
[1724265113846,0.8339037,143.17,143.15,24.4493]
[1724265114243,0.8339037,143.17,143.16,6.9851]
[1724265122856,0.8339037,143.17,143.15,17.4638]
[1724265123062,0.8339037,143.17,143.15,24.4494]
[1724265123274,0.8339037,143.17,143.16,6.9851]
[1724265126466,0.8339037,143.17,143.16,15.20443863]
[1724265126853,0.8339037,143.17,143.16,6.9851]
[1724265127979,0.8339037,143.17,143.15,17.4638]
[1724265128678,33.6739037,143.17,143.11,17.4685]
[1724265128864,32.84,143.15,143.11,17.4685]
[1724265129055,1.35141415,143.14,143.11,17.4685]
[1724265129259,1.35141415,143.14,143.11,24.456]
[1724265129564,32.84,143.15,143.13,6.9866]
[1724265129762,33.6739037,143.17,143.14,6.9861]
[1724265130287,0.8339037,143.17,143.14,17.465]
[1724265131688,0.8339037,143.17,143.16,6.9851]
[1724265136375,0.8339037,143.17,143.15,6.9855]
[1724265136762,13.13,143.16,143.14,24.4511]
[1724265137659,13.13,143.16,143.15,6.9856]
[1724265137859,0.8339037,143.17,143.15,6.9856]
[1724265138176,0.8339037,143.17,143.16,6.9851]
[1724265139275,13.9639037,143.17,143.15,6.9856]
[1724265139479,13.9639037,143.17,143.14,17.465]
[1724265139987,13.9639037,143.17,143.14,24.4506]
[1724265140495,13.9639037,143.17,143.15,6.9855]
[1724265141872,13.9639037,143.17,143.16,6.9851]
[1724265142208,0.8339037,143.17,143.16,6.9851]
[1724265148009,13.9639037,143.17,143.15,6.9856]
[1724265148209,13.9639037,143.17,143.13,6.9863]
[1724265148419,13.13,143.15,143.12,6.987]
[1724265148714,1.35141415,143.14,143.12,6.987]
[1724265149124,13.13,143.15,143.13,6.9866]
[1724265149125,14.48141415,143.15,143.13,6.9866]
[1724265150304,13.13,143.15,143.13,6.9866]
[1724265151017,13.13,143.15,143.12,6.987]
[1724265151220,1.35141415,143.14,143.12,6.987]
[1724265151435,13.13,143.15,143.13,6.9866]
[1724265151754,13.13,143.15,143.12,6.9871]
[1724265151921,13.13,143.15,143.13,6.9864]
[1724265152121,0.8339037,143.17,143.13,6.9864]
[1724265152322,13.13,143.15,143.13,6.9864]
[1724265152731,1.35141415,143.14,143.11,17.4686]
[1724265153038,13.13,143.13,143.11,17.4686]
[1724265153629,14.48141415,143.13,143.11,17.4686]
[1724265153816,6.9871,143.12,143.08,6.9886]
[1724265154014,13.13,143.11,143.08,6.9886]
[1724265154231,13.13,143.11,143.09,6.9885]
[1724265154440,32.87,143.13,143.09,6.9885]
[1724265154643,32.87,143.11,143.07,17.4728]
[1724265154826,32.87,143.09,143.05,6.9901]
[1724265155025,32.87,143.09,143.06,6.99]
[1724265155343,32.87,143.09,143.04,17.4773]
[1724265155726,32.87,143.11,143.04,17.4773]
[1724265155938,32.87,143.11,143.08,6.989]
[1724265156117,32.87,143.11,143.07,24.4632]
[1724265156319,39.8576,143.11,143.07,17.4737]
[1724265156544,1.35141415,143.1,143.07,17.4737]
[1724265156838,1.35141415,143.1,143.03,16.2357]
[1724265156839,32.87,143.09,143.05,6.9904]
[1724265157041,1.35141415,143.08,143.05,6.9904]
[1724265157221,1.35141415,143.07,143.04,17.4769]
[1724265157432,41.21101415,143.07,143.02,6.9919]
[1724265157747,32.87,143.05,143.01,17.4809]
[1724265158046,32.87,143.03,143.01,17.4809]
[1724265158542,34.22141415,143.03,143.01,17.4809]
[1724265158747,34.22141415,143.03,143.0,133.3336]
[1724265159144,32.87,143.01,143.0,133.3336]
[1724265159927,34.22141415,143.01,143.0,133.3336]
[1724265160134,79.22141415,143.01,143.0,133.3336]
[1724265161051,84.8625,143.01,143.0,133.3336]
[1724265161564,45.0,143.01,143.0,133.3336]
[1724265161865,6.992,143.02,143.0,133.3336]
[1724265163058,6.9915,143.03,143.0,133.3336]
[1724265163241,32.87,143.05,143.0,133.3336]
[1724265163555,6.9904,143.06,143.0,133.3336]
[1724265163763,32.87,143.03,143.0,133.3336]
[1724265163929,1.35141415,143.02,143.0,133.3336]
[1724265164130,39.8615,143.03,143.0,133.3336]
[1724265164830,6.9923,143.02,143.0,133.3336]
[1724265165050,39.8615,143.03,143.0,133.3336]
[1724265165238,45.0,143.02,143.0,133.3336]
[1724265165434,54.9878,143.07,143.0,133.3336]
[1724265165864,6.9904,143.06,143.0,140.3265]
[1724265166670,54.9878,143.07,143.0,133.3336]
[1724265166975,39.3435,143.01,142.9,6.9974]
[1724265167181,39.3435,143.01,142.89,6.9983]
[1724265167182,6.9959,142.94,142.89,6.9983]
[1724265168269,46.35141415,142.93,142.89,6.9983]
[1724265168670,45.0,142.93,142.89,6.9983]
[1724265169169,32.87,142.97,142.88,17.4969]
[1724265169369,32.87,142.97,142.86,34.9974]
[1724265169370,7.29141554,142.99,142.94,6.9958]
[1724265169543,22.6589,143.0,142.95,6.9954]
[1724265169874,6.4735,143.01,142.95,17.4882]
[1724265170166,32.87,143.05,142.94,34.9773]
[1724265170339,1.35141415,143.04,142.97,24.4798]
[1724265170675,47.2984,143.06,142.99,6.9934]
[1724265170856,6.9909,143.05,142.99,24.4759]
[1724265171062,13.1385,143.06,143.0,6.9929]
[1724265171249,14.28608917,143.07,142.99,17.4829]
[1724265171457,6.99,143.07,142.99,17.4829]
[1724265171772,41.15,143.08,142.99,17.4829]
[1724265172291,41.15,143.08,143.02,6.9919]
[1724265172575,6.9891,143.08,143.01,17.4802]
[1724265172953,54.3728,143.1,143.03,6.9913]
[1724265173272,13.2228,143.1,143.01,17.4802]
[1724265173444,6.2343,143.1,143.05,6.9905]
[1724265173665,13.2224,143.1,143.04,6.991]
[1724265173868,8.34031415,143.09,143.02,6.9917]
[1724265174811,45.0,143.08,143.03,6.9914]
[1724265175698,45.0,143.08,143.04,6.991]
[1724265175869,6.2343,143.1,143.04,6.991]
[1724265176066,13.2224,143.1,143.04,6.991]
[1724265176378,14.57381415,143.1,143.04,6.991]
[1724265176788,6.9888,143.09,143.03,6.9912]
[1724265176966,48.44919102,143.12,143.04,17.4774]
[1724265177162,8.33951415,143.11,143.05,6.9904]
[1724265177396,1.35141415,143.1,143.05,6.9904]
[1724265177599,8.33961415,143.1,143.04,24.4684]
[1724265177901,6.9897,143.07,143.02,6.9917]
[1724265178062,8.34111415,143.07,143.02,6.9917]
[1724265178261,6.9897,143.07,143.02,6.9917]
[1724265178596,7.29919102,143.12,143.03,34.9562]
[1724265178895,6.2562,143.13,143.08,6.989]
[1724265179066,6.2562,143.13,143.07,24.4623]
[1724265179465,13.2429,143.13,143.07,24.4623]
[1724265180277,45.0,143.12,143.07,24.4623]
[1724265180792,45.0,143.12,143.08,6.989]
[1724265181419,13.2429,143.13,143.07,24.4623]
[1724265181625,8.33851415,143.12,143.07,24.4623]
[1724265182010,6.2562,143.13,143.07,24.4622]
[1724265182637,13.243,143.13,143.07,24.4622]
[1724265182924,45.0,143.12,143.07,24.4622]
[1724265183330,45.0,143.12,143.09,6.9884]
[1724265183704,6.5436,143.16,143.12,6.987]
[1724265183899,6.5436,143.16,143.11,6.9875]
[1724265184422,0.8339037,143.17,143.12,6.9871]
[1724265184931,0.8339037,143.17,143.11,17.468]
[1724265184932,6.9853,143.16,143.11,17.468]
[1724265185727,45.0,143.15,143.11,17.468]
[1724265185939,45.0,143.15,143.11,24.4554]